bitfinex-derivatives/quotes_ETHF0:USTF0_20250912
["timestamp","ask_amount","ask_price","bid_price","bid_amount"]
[1757674093319,0.7744,4513.4,4513.1,0.2989]
[1757674094619,0.7744,4513.4,4513.3,0.4955]
[1757674094820,0.7744,4513.4,4513.3,0.6869]
[1757674096018,0.708,4513.4,4513.3,0.6869]
[1757674096414,0.5089,4513.4,4513.3,0.6869]
[1757674098325,0.708,4513.4,4513.3,0.6869]
[1757674103726,0.4024,4513.4,4513.0,1.994341]
[1757674103927,0.4024,4513.1,4513.0,1.994341]
[1757674104131,0.708,4513.1,4513.0,1.994341]
[1757674104440,0.8245,4513.0,4512.9,2.190941]
[1757674104630,0.8245,4513.0,4512.9,2.489841]
[1757674107333,0.8245,4513.0,4512.9,2.190941]
[1757674107635,0.8245,4513.0,4512.9,1.994341]
[1757674108536,0.8245,4513.0,4512.9,2.190941]
[1757674108741,0.708,4513.0,4512.9,2.708541]
[1757674109743,0.708,4513.0,4512.9,0.7142]
[1757674111144,0.8292,4513.0,4512.9,0.7142]
[1757674118750,0.708,4513.0,4512.9,0.7142]
[1757674118950,0.708,4513.0,4512.9,1.11295]
[1757674119249,0.1165,4513.5,4513.4,0.725]
[1757674119250,0.5175,4513.5,4513.4,0.725]
[1757674119746,0.8348,4513.5,4513.4,0.725]
[1757674119947,1.05636,4513.5,4513.4,0.725]
[1757674120750,0.8348,4513.5,4513.4,0.725]
[1757674122654,0.8348,4513.5,4513.4,0.2074]
[1757674123551,0.8348,4513.5,4512.9,1.994341]
[1757674123552,0.5175,4513.5,4512.9,1.994341]
[1757674123757,0.8395,4513.0,4512.9,1.994341]
[1757674124145,0.5163,4513.0,4512.9,2.719341]
[1757674124453,0.7183,4513.0,4512.9,2.719341]
[1757674125255,0.7183,4513.0,4512.9,0.725]
[1757674128456,0.8395,4513.0,4512.9,0.725]
[1757674129260,0.7183,4512.9,4512.8,1.99348767]
[1757674129454,0.7183,4512.9,4512.8,2.20088767]
[1757674129651,0.7183,4512.9,4512.8,2.50718767]
[1757674129856,0.7183,4512.9,4512.8,0.5137]
[1757674130153,0.7183,4512.9,4512.8,0.725]
[1757674138259,0.5163,4512.9,4512.8,0.725]
[1757674138861,0.2941,4513.4,4512.9,0.3069]
[1757674139059,0.4956,4513.4,4513.3,0.701]
[1757674139762,0.6929,4513.4,4513.3,0.701]
[1757674140961,0.6929,4513.9,4513.8,0.3941]
[1757674141262,0.6929,4513.9,4513.8,0.701]
[1757674143866,0.2941,4513.9,4513.8,0.701]
[1757674144365,0.4956,4513.9,4513.8,0.701]
[1757674144671,0.6929,4513.9,4513.8,0.701]
[1757674145566,0.3988,4513.9,4513.4,1.99348767]
[1757674145765,0.3988,4513.6,4513.5,0.5037]
[1757674145964,0.6929,4513.6,4513.5,0.701]
[1757674148976,0.4956,4513.6,4513.5,0.8261]
[1757674150672,0.4956,4513.6,4513.5,0.701]
[1757674152566,0.4956,4513.6,4513.5,0.8261]
[1757674152876,0.2941,4513.8,4513.7,0.3941]
[1757674153074,0.4956,4513.8,4513.7,0.701]
[1757674156382,0.6929,4513.8,4513.7,0.1968]
[1757674156681,0.6929,4513.8,4513.5,0.3069]
[1757674156880,0.6929,4513.8,4513.1,1.99348767]
[1757674156881,0.3988,4513.8,4513.7,0.1968]
[1757674157482,0.6929,4513.8,4513.7,0.1968]
[1757674157974,0.6929,4513.8,4513.7,0.701]
[1757674163184,0.2941,4514.0,4513.8,0.3069]
[1757674163383,0.0664,4514.1,4514.0,0.8261]
[1757674163683,0.2941,4514.3,4514.0,0.8261]
[1757674163883,0.2015,4514.2,4514.1,0.3069]
[1757674164383,0.4956,4514.2,4514.1,0.701]
[1757674167082,0.3605,4514.4,4514.2,0.3069]
[1757674167287,0.3605,4514.4,4514.3,0.3941]
[1757674167588,0.3605,4514.4,4514.3,0.701]
[1757674168088,0.562,4514.4,4514.3,0.701]
[1757674168984,0.4956,4514.4,4514.3,0.701]
[1757674170192,0.7023,4514.9,4514.8,0.7036]
[1757674171296,0.7023,4515.5,4515.4,0.4074]
[1757674171493,0.7023,4515.5,4515.4,0.7036]
[1757674173894,0.4984,4515.5,4515.4,0.7036]
[1757674174288,0.7023,4515.9,4515.8,0.7036]
[1757674174979,0.7023,4515.9,4515.8,0.2101]
[1757674175184,0.7023,4515.9,4515.5,0.2962]
[1757674175895,0.22145,4515.8,4515.1,0.2962]
[1757674176188,0.291,4515.4,4515.1,0.4074]
[1757674176385,0.291,4515.4,4515.3,0.4074]
[1757674176586,0.1239,4516.0,4515.3,0.7036]
[1757674176786,0.1239,4516.0,4515.4,0.2962]
[1757674177095,0.7023,4515.9,4515.8,0.7036]
[1757674177295,0.7687,4515.9,4515.8,0.7036]
[1757674179594,0.7023,4515.9,4515.8,0.7036]
[1757674180696,0.7023,4515.9,4515.8,0.2101]
[1757674180888,0.7023,4515.9,4515.8,0.5063]
[1757674182690,0.7023,4515.9,4515.8,0.7036]
[1757674190800,0.0664,4516.1,4515.8,0.7036]
[1757674190998,0.0664,4516.1,4516.0,0.4074]
[1757674191302,0.4113,4516.1,4515.7,0.2962]
[1757674191504,0.4113,4515.8,4515.7,0.5063]
[1757674191706,0.7023,4515.8,4515.7,0.5063]
[1757674192616,0.7023,4515.8,4515.7,0.7036]
[1757674194503,0.7023,4515.8,4515.1,0.2962]
[1757674194504,0.291,4515.7,4515.1,0.2962]
[1757674194697,0.4984,4515.2,4515.1,0.92506]
[1757674194897,0.291,4515.9,4515.1,0.62886]
[1757674195106,0.7023,4515.9,4515.8,0.5063]
[1757674195506,0.7023,4515.9,4515.8,0.7036]
[1757674197309,0.7023,4515.9,4515.8,0.4074]
[1757674199502,0.7023,4515.9,4515.8,0.7081]
[1757674203012,1.24492437,4515.9,4515.8,0.7081]
[1757674203200,1.24493577,4515.9,4515.8,0.7081]
[1757674206315,1.24493577,4515.9,4515.8,0.2101]
[1757674207611,0.2962,4515.8,4515.1,0.3007]
[1757674207813,0.1196,4516.0,4515.1,0.3007]
[1757674207814,0.6929,4515.2,4515.1,0.207]
[1757674208014,0.3967,4514.9,4514.8,0.5077]
[1757674208210,0.6929,4514.9,4514.5,0.3007]
[1757674208410,0.6929,4514.9,4514.1,0.3007]
[1757674208617,0.1199,4515.0,4514.7,0.207]
[1757674208618,0.6929,4514.8,4514.7,0.207]
[1757674208819,0.6929,4514.8,4514.7,0.5077]
[1757674209509,0.6929,4514.8,4514.7,0.7092]
[1757674211218,0.4888,4514.8,4514.7,0.7092]
[1757674213614,0.6929,4514.8,4514.7,0.7092]
[1757674224719,0.4888,4514.8,4514.7,0.7092]
[1757674227826,0.6929,4514.8,4514.7,0.7092]
[1757674228828,0.6929,4514.8,4514.7,0.4085]
[1757674230828,0.6929,4514.8,4514.7,0.723]
[1757674231432,0.1199,4515.5,4514.7,4.62999999]
[1757674231626,0.5156,4515.4,4515.3,0.3915]
[1757674231830,0.5156,4515.4,4515.3,0.706]
[1757674232128,0.71,4515.4,4515.3,0.706]
[1757674232630,0.71,4515.9,4515.8,0.3915]
[1757674232822,0.71,4515.9,4515.8,0.706]
[1757674237237,0.71,4515.9,4515.8,0.1929]
[1757674237436,0.71,4515.9,4515.5,0.3145]
[1757674237939,0.71,4515.9,4515.1,0.3145]
[1757674238639,0.71,4515.9,4515.1,0.4924662]
[1757674238836,0.2087,4515.3,4515.2,0.5074]
[1757674239034,0.5156,4515.3,4515.2,0.706]
[1757674241546,0.3069,4515.3,4515.2,0.706]
[1757674243935,0.71,4515.3,4515.2,0.706]
[1757674244547,0.71,4515.3,4514.8,2.30798767]
[1757674244738,0.71,4515.3,4515.2,0.1929]
[1757674244943,0.71,4515.3,4515.2,0.706]
[1757674245947,0.0664,4515.5,4515.3,0.3145]
[1757674246244,0.0664,4515.5,4515.4,0.706]
[1757674246546,0.1196,4516.0,4515.4,0.706]
[1757674246847,0.5227,4516.0,4515.9,0.1929]
[1757674247040,0.8296,4516.0,4515.9,0.1929]
[1757674248046,0.8296,4516.0,4515.7,0.3145]
[1757674250149,0.896,4516.0,4515.7,0.3145]
[1757674251151,0.896,4516.0,4515.1,0.3145]
[1757674252261,0.71,4515.2,4515.1,0.5074]
[1757674252752,0.71,4515.2,4515.1,0.706]
[1757674260657,0.71,4515.2,4515.1,2.69948767]
[1757674262359,0.71,4515.2,4515.1,0.706]
[1757674265566,0.71,4515.2,4515.1,2.69603228]
[1757674267271,0.71,4515.2,4515.1,2.18293228]
[1757674267568,0.71,4515.2,4515.1,2.47263228]
[1757674267868,0.71,4515.2,4515.1,2.66573228]
[1757674269669,0.71,4515.2,4515.0,1.99003228]
[1757674269870,0.1157,4515.0,4514.9,1.99003228]
[1757674270163,0.5201,4515.0,4514.9,2.48633228]
[1757674270367,0.8377,4515.0,4514.9,2.67943228]
[1757674271662,0.722,4515.0,4514.9,2.67943228]
[1757674272668,0.5235,4515.0,4514.9,2.67943228]
[1757674272870,0.722,4515.0,4514.9,0.6894]
[1757674275270,0.5235,4515.0,4514.9,0.6894]
[1757674282373,0.5201,4515.0,4514.6,2.17054742]
[1757674282574,0.722,4514.9,4514.8,0.6894]
[1757674284669,0.3176,4515.3,4514.8,0.3997]
[1757674284870,0.722,4515.3,4515.2,0.3997]
[1757674285071,0.722,4515.3,4515.2,0.6894]
[1757674288680,0.722,4515.3,4514.9,0.3022]
[1757674288983,0.828,4515.0,4514.9,0.5067]
[1757674289178,0.828,4515.0,4514.9,0.2045]
[1757674289480,0.7105,4514.9,4514.8,0.2045]
[1757674289879,0.7105,4514.9,4514.8,0.5067]
[1757674290583,0.7105,4514.9,4514.8,0.7113]
[1757674294289,0.828,4514.5,4514.4,0.3022]
[1757674294489,0.828,4514.5,4514.4,0.88421528]
[1757674294782,0.7105,4514.5,4514.4,0.88421528]
[1757674295484,1.31174068,4516.5,4514.4,0.58201528]
[1757674295787,0.76289053,4515.9,4514.6,0.3022]
[1757674295987,0.54142053,4515.8,4514.6,0.3022]
[1757674296288,0.54142053,4515.7,4514.6,0.3022]
[1757674296584,0.22146,4516.3,4514.6,0.3022]
[1757674296788,0.54141312,4516.2,4514.6,0.3022]
[1757674296979,0.54141312,4516.1,4514.6,0.3022]
[1757674297181,0.54141312,4516.0,4514.6,0.3022]
[1757674297486,0.2137,4515.8,4514.6,0.3022]
[1757674297685,0.2137,4515.6,4514.6,0.3022]
[1757674298686,0.6086,4515.6,4515.5,0.624]
[1757674299184,0.6086,4515.6,4515.5,0.4195]
[1757674299185,1.15013516,4515.6,4515.5,0.4195]
[1757674299385,0.6086,4515.6,4515.5,0.4195]
[1757674299578,1.1501359,4515.6,4515.5,0.4195]
[1757674299775,0.6086,4515.6,4515.5,0.4195]
[1757674300788,0.6086,4515.6,4515.5,0.624]
[1757674301283,0.0587,4517.5,4515.6,0.3022]
[1757674301481,0.0587,4517.5,4515.6,0.70071]
[1757674301482,0.013,4517.3,4515.6,0.70071]
[1757674301788,0.75944858,4517.4,4515.8,2.29223228]
[1757674301789,0.013,4517.1,4515.8,2.29223228]
[1757674301985,0.53803857,4517.0,4516.0,0.1173]
[1757674302197,0.23442,4517.1,4516.1,0.3022]
[1757674302385,0.0207,4516.4,4516.3,0.5067]
[1757674302585,0.0207,4516.4,4516.3,0.7113]
[1757674304994,0.0664,4516.6,4516.3,0.7113]
[1757674305193,0.0883,4516.6,4516.5,0.8286]
[1757674305390,0.1102,4516.6,4516.5,0.8286]
[1757674305598,0.1102,4516.6,4516.5,0.624]
[1757674305800,0.0438,4516.6,4516.5,0.624]
[1757674305991,0.0575,4516.6,4516.5,0.624]
[1757674306192,0.0575,4516.6,4516.5,0.4195]
[1757674308093,0.0438,4516.6,4516.5,0.624]
[1757674309505,0.0438,4516.6,4516.5,0.8286]
[1757674310903,0.0664,4516.8,4516.6,0.3022]
[1757674311104,0.0664,4516.8,4516.7,0.7113]
[1757674311708,0.0137,4517.9,4516.8,0.3022]
[1757674311903,0.75584851,4517.8,4516.8,0.3022]
[1757674312204,0.0438,4517.6,4517.5,0.624]
[1757674312404,0.57826851,4517.6,4517.5,0.624]
[1757674312600,0.59196851,4517.6,4517.5,0.4195]
[1757674313107,0.57826851,4517.6,4517.5,0.4195]
[1757674313303,0.57826851,4517.6,4517.5,0.624]
[1757674315307,0.0438,4517.6,4517.5,0.624]
[1757674316706,0.0438,4517.6,4517.5,0.8286]
[1757674317412,0.0664,4517.8,4517.5,0.8286]
[1757674317616,0.0664,4517.8,4517.7,0.7113]
[1757674318610,0.1076,4517.8,4517.7,0.5067]
[1757674318808,4.1197,4517.8,4517.7,0.3022]
[1757674319110,4.0533,4517.8,4517.7,0.3022]
[1757674319313,0.0412,4517.8,4517.7,0.7208]
[1757674319508,0.0121,4518.5,4518.0,0.1252]
[1757674319710,0.0121,4518.8,4518.1,0.3071]
[1757674319916,0.0193,4518.6,4518.5,0.8509]
[1757674320215,0.17,4518.9,4518.6,0.3071]
[1757674320510,0.0386,4518.7,4518.6,0.7257]
[1757674320817,0.0193,4518.7,4518.6,0.7257]
[1757674321015,0.17,4518.9,4518.6,0.7257]
[1757674321212,0.17,4518.9,4518.7,0.3071]
[1757674321418,0.1893,4518.9,4518.8,0.4186]
[1757674321606,0.17,4518.9,4518.8,0.7257]
[1757674322513,0.2086,4518.9,4518.8,0.7257]
[1757674323107,0.2086,4518.9,4518.8,0.5145]
[1757674324114,0.2086,4518.9,4518.8,0.7257]
[1757674324811,0.17,4518.9,4518.8,0.2074]
[1757674325017,0.39829,4518.1,4518.0,0.3364]
[1757674325215,0.39829,4518.1,4518.0,0.5438]
[1757674326520,1.99158,4517.9,4516.0,2.79088274]
[1757674326721,0.4104,4517.5,4516.6,0.22136999]
[1757674326922,1e-05,4516.8,4516.6,0.22136999]
[1757674327114,0.39841,4516.8,4516.6,0.22136999]
[1757674327418,0.2903,4516.7,4516.6,0.22136999]
[1757674327819,0.29031,4516.8,4516.5,0.17636022]
[1757674328021,0.51854,4516.5,4516.0,2.38851228]
[1757674328218,0.39842,4516.7,4516.1,0.61989]
[1757674328519,1e-05,4516.8,4516.2,0.39846]
[1757674328823,0.39844,4516.4,4516.2,3.13637708]
[1757674329122,0.39847,4516.2,4516.0,0.17883153]
[1757674329320,0.1201,4516.5,4516.1,0.22142]
[1757674329511,0.1201,4516.5,4516.1,2.89745606]
[1757674329713,0.39846,4516.3,4516.0,6.89745606]
[1757674329918,0.1201,4516.5,4516.0,4.0]
[1757674330421,0.1201,4516.5,4516.1,2.89745606]
[1757674330615,0.2903,4516.4,4516.1,2.89745606]
[1757674330816,0.1201,4516.0,4515.9,1.99003228]
[1757674331017,1.1162,4516.5,4515.5,0.57625614]
[1757674331018,0.1201,4516.5,4515.7,2.38853228]
[1757674331218,0.1201,4516.5,4515.8,1.99003228]
[1757674331422,0.1201,4516.5,4515.8,4.85558794]
[1757674331712,0.0664,4516.9,4515.9,1.99003228]
[1757674331922,0.0664,4516.9,4516.0,1.99003228]
[1757674332227,0.39842,4516.7,4516.1,0.39847]
[1757674332722,0.39842,4516.7,4516.2,3.26750368]
[1757674332919,0.0664,4516.9,4516.2,3.26750368]
[1757674333121,0.2903,4516.4,4516.2,0.39846]
[1757674333320,0.0664,4516.9,4516.3,3.26749368]
[1757674333719,0.0664,4516.9,4516.3,0.39845]
[1757674334225,0.1201,4516.5,4515.9,1.99003228]
[1757674334619,0.1201,4516.5,4515.9,0.39849]
[1757674334916,0.1201,4516.5,4515.8,2.38853228]
[1757674335121,0.1201,4516.5,4515.8,1.99003228]
[1757674335321,0.2903,4516.8,4515.9,4.89335363]
[1757674335521,0.2903,4516.8,4516.0,1.99003228]
[1757674335920,0.2903,4516.8,4516.1,2.84150262]
[1757674336321,0.0664,4516.9,4516.3,0.39845]
[1757674336722,0.2903,4516.8,4516.1,3.23996262]
[1757674337032,0.0664,4516.9,4516.1,3.23996262]
[1757674337033,0.261,4516.9,4516.1,3.23996262]
[1757674337323,0.2903,4516.8,4516.2,0.39846]
[1757674337627,0.261,4516.9,4516.2,0.39846]
[1757674337821,0.261,4516.9,4516.1,3.01490327]
[1757674338022,0.0664,4516.9,4516.2,0.39846]
[1757674338221,0.0664,4516.9,4516.3,0.39845]
[1757674338618,0.2903,4516.8,4516.1,5.40339555]
[1757674338823,0.0664,4516.9,4516.2,0.39846]
[1757674339023,0.2903,4516.8,4516.2,0.39846]
[1757674339527,0.261,4516.9,4516.1,5.00493555]
[1757674339729,0.2903,4516.8,4516.1,5.40340555]
[1757674339929,0.0664,4516.9,4516.2,1.99003228]
[1757674340125,0.2903,4516.8,4516.2,1.99003228]
[1757674340429,0.2903,4516.4,4516.3,1.99003228]
[1757674342530,0.1201,4516.5,4516.3,1.99003228]
[1757674342925,0.4104,4516.5,4516.3,1.99003228]
[1757674343322,0.2903,4516.4,4516.3,1.99003228]
[1757674343725,0.0664,4516.9,4516.5,0.0758]
[1757674343926,0.0664,4516.9,4516.8,0.2426]
[1757674344229,0.0664,4516.9,4516.8,0.3184]
[1757674344436,0.1201,4517.0,4516.8,0.3184]
[1757674344730,0.1201,4517.0,4516.9,0.3184]
[1757674345228,0.3147,4517.0,4516.9,0.3184]
[1757674345731,0.605,4517.0,4516.9,0.2426]
[1757674346234,0.8101,4517.0,4516.9,0.2426]
[1757674347132,0.1201,4516.5,4516.4,2.41273284]
[1757674347327,0.605,4516.5,4516.4,2.41273284]
[1757674347632,0.605,4516.5,4516.4,2.48853284]
[1757674347830,0.605,4516.5,4516.4,0.49850056]
[1757674348224,0.8056,4516.5,4516.4,0.2426]
[1757674349332,0.2903,4516.5,4516.4,0.3197]
[1757674349636,0.2903,4516.5,4516.4,2.30973228]
[1757674349935,0.2903,4516.5,4516.4,0.3197]
[1757674350131,0.1201,4517.0,4516.4,0.3197]
[1757674350435,0.3186,4517.0,4516.9,0.6987]
[1757674352237,0.6108,4517.0,4516.9,0.6987]
[1757674352436,0.8114,4517.0,4516.9,0.6987]
[1757674352836,0.8114,4517.0,4516.6,1.98570569]
[1757674352837,0.2922,4516.9,4516.6,1.98570569]
[1757674353034,0.6913,4516.2,4516.1,4.77658843]
[1757674353234,0.1166,4516.0,4515.8,1.98570569]
[1757674353442,0.2922,4515.8,4515.6,1.98570569]
[1757674353740,0.1166,4515.5,4515.4,1.98570569]
[1757674353936,0.3991,4515.3,4515.2,1.98570569]
[1757674354239,0.6913,4515.3,4515.0,1.98570569]
[1757674354432,0.6913,4515.2,4515.1,0.1968]
[1757674363539,0.6913,4514.7,4514.6,0.37309432]
[1757674363739,0.3991,4515.5,4515.4,0.6987]
[1757674365744,0.6913,4515.5,4515.4,0.6987]
[1757674366240,0.1985,4515.5,4515.4,0.6987]
[1757674366449,0.4907,4515.5,4515.4,0.6987]
[1757674367345,0.4907,4515.5,4515.4,0.87851564]
[1757674368144,0.1985,4515.5,4515.4,0.87851564]
[1757674368341,0.2922,4516.4,4515.7,0.3961]
[1757674368546,0.1166,4516.5,4515.8,0.6987]
[1757674368547,0.4907,4515.9,4515.8,0.6987]
[1757674368747,0.6913,4515.9,4515.8,0.6987]
[1757674380447,0.0664,4516.1,4516.0,0.8414]
[1757674380448,0.5838,4516.1,4516.0,0.8414]
[1757674380643,0.1166,4518.0,4516.1,0.3162]
[1757674380948,0.75658863,4517.4,4516.1,0.3162]
[1757674381150,0.53518863,4517.3,4516.1,0.3162]
[1757674381357,0.53518863,4517.2,4516.1,0.3162]
[1757674381549,0.75658863,4517.2,4516.1,0.3162]
[1757674381855,0.2214,4517.1,4516.1,0.3162]
[1757674382056,0.1166,4518.0,4516.1,0.3162]
[1757674382352,0.75726463,4517.4,4516.1,0.3162]
[1757674382555,0.0968,4517.2,4516.1,0.3162]
[1757674382853,0.1549,4516.2,4516.1,0.7168]
[1757674383747,0.0968,4516.7,4516.5,0.1246]
[1757674383941,0.3098,4516.6,4516.5,0.3215]
[1757674384147,0.3098,4516.6,4516.5,0.6377]
[1757674385051,0.4066,4516.6,4516.0,0.1246]
[1757674385350,0.0968,4517.3,4515.8,0.3162]
[1757674385656,0.0968,4517.1,4516.1,0.3162]
[1757674385857,0.22141001,4517.4,4516.1,0.3162]
[1757674386049,0.4066,4516.2,4516.1,0.5131]
[1757674387360,0.3098,4516.2,4516.1,0.5131]
[1757674388559,0.3098,4516.2,4516.1,0.7168]
[1757674388760,0.1549,4516.2,4516.1,0.7168]
[1757674388955,0.0664,4517.0,4516.5,0.3215]
[1757674388956,0.3098,4516.6,4516.5,0.3215]
[1757674389258,0.4066,4516.6,4516.5,0.4408]
[1757674390660,0.4066,4516.6,4516.5,0.6377]
[1757674391360,0.4066,4516.6,4516.5,0.4408]
[1757674395264,0.3098,4516.6,4516.5,0.6377]
[1757674397051,0.4066,4516.6,4516.5,0.4408]
[1757674397257,0.3098,4516.6,4516.5,0.6377]
[1757674397458,0.3098,4516.6,4516.5,0.8414]
[1757674398366,0.4066,4516.6,4516.5,0.6377]
[1757674398659,0.3098,4516.6,4516.5,0.6377]
[1757674399164,0.3098,4516.6,4516.5,0.8414]
[1757674400065,0.0968,4517.3,4517.0,0.1246]
[1757674400362,0.1549,4517.1,4517.0,0.8414]
[1757674400958,0.3098,4517.1,4517.0,0.8414]
[1757674401159,0.3098,4517.1,4517.0,0.6377]
[1757674401160,0.4066,4517.1,4517.0,0.6377]
[1757674404365,0.3098,4517.1,4517.0,0.6377]
[1757674405168,0.3098,4517.1,4517.0,0.8414]
[1757674406863,1.19424068,4518.1,4517.0,0.8414]
[1757674407168,0.1549,4517.2,4517.1,0.7168]
[1757674409868,0.1557,4517.6,4517.5,0.8195]
[1757674410069,0.4087,4517.6,4517.5,0.627]
[1757674410266,0.94208456,4517.6,4517.5,0.627]
[1757674410968,0.94208456,4517.6,4517.5,0.431]
[1757674412573,4.84478456,4517.6,4517.1,0.3113]
[1757674412874,0.4087,4517.2,4517.1,0.3113]
[1757674413369,0.4087,4517.2,4517.1,0.5073]
[1757674413570,0.3114,4517.2,4517.1,0.5073]
[1757674415577,0.3114,4517.2,4517.1,0.6998]
[1757674415770,0.1637,4518.0,4517.2,0.3113]
[1757674415966,0.1557,4517.6,4517.5,0.5082]
[1757674416171,0.84463912,4517.6,4517.5,0.8195]
[1757674420074,0.94193912,4517.6,4517.5,0.627]
[1757674420977,0.84463912,4517.6,4517.5,0.627]
[1757674421379,0.3114,4517.6,4517.5,0.627]
[1757674422579,0.1557,4517.6,4517.5,0.8195]
[1757674423979,1.19424068,4518.7,4517.6,0.3113]
[1757674423980,0.18066517,4518.5,4517.6,0.3113]
[1757674424172,0.85084848,4518.4,4517.6,0.3113]
[1757674424373,0.53291848,4518.3,4517.6,0.3113]
[1757674424573,0.84191848,4518.2,4518.1,0.196]
[1757674424773,0.84191848,4518.2,4518.1,0.5073]
[1757674425173,0.84191848,4518.2,4518.1,0.6998]
[1757674428180,0.93851848,4518.2,4518.1,0.6998]
[1757674428569,0.93851848,4518.2,4518.1,0.5073]
[1757674429582,0.93851848,4518.2,4518.1,0.3113]
[1757674434183,0.93851848,4518.2,4518.1,0.5073]
[1757674434777,0.93851848,4518.2,4518.1,0.3113]
[1757674437585,0.93851848,4518.2,4518.1,0.5073]
[1757674438091,0.84191848,4518.2,4518.1,0.5073]
[1757674440689,0.93781848,4518.2,4518.1,0.5073]
[1757674441289,0.93781848,4518.2,4517.6,0.3133]
[1757674441592,0.3092,4517.7,4517.6,0.509]
[1757674442291,0.84211848,4517.7,4517.6,0.509]
[1757674444394,0.84211848,4517.7,4517.6,0.7148]
[1757674447186,0.84211848,4517.7,4517.1,0.3133]
[1757674447494,0.3092,4517.2,4517.1,0.7148]
[1757674447891,0.84211848,4517.2,4517.1,0.7148]
[1757674450999,0.68751848,4517.2,4517.1,0.7148]
[1757674453195,0.53291848,4517.2,4517.1,0.7148]
[1757674455003,0.68751848,4517.2,4517.1,0.7148]
[1757674455698,0.53291848,4517.2,4517.1,0.7148]
[1757674457300,0.0664,4517.5,4517.1,0.4015]
[1757674457497,0.68645173,4517.4,4517.3,0.7148]
[1757674459104,0.84105173,4517.4,4517.3,0.7148]
[1757674469801,0.93785173,4517.4,4517.3,0.509]
[1757674470208,0.84105173,4517.4,4517.1,0.3016]
[1757674470412,0.3096,4516.7,4516.6,0.3016]
[1757674470717,0.6247,4516.2,4515.0,0.1178]
[1757674470914,0.4037,4515.6,4515.5,0.3324]
[1757674471209,1.15655173,4515.6,4515.5,0.1245]
[1757674471408,1.15655173,4515.6,4515.0,0.1178]
[1757674471609,0.53185173,4515.5,4515.0,0.1178]
[1757674471814,0.4037,4515.1,4515.0,0.522]
[1757674472612,0.4037,4515.1,4515.0,0.8236]
[1757674472807,0.2099,4515.1,4515.0,0.8236]
[1757674474720,0.4037,4514.6,4514.5,0.1178]
[1757674474924,0.6247,4514.6,4514.5,0.6273]
[1757674475819,0.4037,4514.6,4514.5,0.6273]
[1757674476015,0.4037,4514.6,4514.5,0.8236]
[1757674484523,0.6252,4514.6,4514.5,0.6273]
[1757674485617,0.4037,4514.2,4514.1,0.3016]
[1757674485816,0.6252,4514.2,4514.1,0.5095]
[1757674487317,0.4037,4514.2,4514.1,0.7058]
[1757674490828,0.6252,4514.2,4514.1,0.7058]
[1757674492230,0.4037,4514.2,4514.1,0.7058]
[1757674496431,0.6252,4514.2,4514.1,0.7058]
[1757674497129,0.4037,4514.2,4514.1,0.7058]
[1757674498638,0.2099,4514.2,4514.1,0.7058]
[1757674500228,1.16057991,4514.2,4514.1,0.5095]
[1757674500431,1.16057991,4514.2,4513.0,0.1178]
[1757674500732,0.1189,4514.5,4513.0,0.1178]
[1757674500733,0.7098,4513.9,4513.8,0.2121]
[1757674500932,1.24097991,4513.9,4513.8,0.2121]
[1757674501733,1.24097991,4513.9,4513.8,0.4157]
[1757674502433,1.24097991,4513.9,4513.8,0.7179]
[1757674508025,1.24097991,4513.9,4513.5,0.3022]
[1757674508239,0.92967991,4513.8,4513.7,0.2121]
[1757674508441,0.92967991,4513.8,4513.7,0.7179]
[1757674508938,1.24097991,4513.8,4513.7,0.4157]
[1757674509132,1.24097991,4513.8,4513.7,0.2121]
[1757674511037,1.24097991,4513.8,4513.7,0.5143]
[1757674511744,1.24097991,4513.8,4513.7,0.7179]
[1757674512945,1.04257991,4513.8,4513.7,0.7179]
[1757674513150,0.84247991,4513.8,4513.7,0.7179]
[1757674514045,1.04257991,4513.8,4513.7,0.7179]
[1757674515245,0.53117991,4513.8,4513.7,0.7179]
[1757674515546,0.5114,4513.8,4513.7,0.7179]
[1757674515745,1.04257991,4513.8,4513.7,0.7179]
[1757674517545,0.1189,4513.5,4513.0,0.42]
[1757674517752,0.5114,4513.2,4513.1,0.4157]
[1757674518151,0.5114,4513.2,4513.1,0.7179]
[1757674525756,0.3113,4513.2,4513.1,0.7179]
[1757674527458,0.5114,4513.2,4513.1,0.7179]
[1757674528456,0.7098,4513.2,4513.1,0.7179]
[1757674528762,0.5114,4513.2,4513.1,0.7179]
[1757674529059,0.3113,4513.2,4513.1,0.7179]
[1757674529362,0.504,4513.2,4513.1,0.7179]
[1757674530054,0.2876,4513.9,4513.2,0.2869]
[1757674530260,0.53227161,4513.8,4513.7,0.6846]
[1757674530462,0.0664,4514.1,4514.0,0.7802]
[1757674530766,1.19424068,4515.1,4514.0,0.4933]
[1757674530960,0.4803,4514.3,4514.2,0.3977]
[1757674531164,1.01269278,4514.3,4514.2,0.6846]
[1757674531758,1.22449278,4514.3,4514.2,0.6846]
[1757674532264,0.6921,4514.3,4514.2,0.6846]
[1757674534271,0.4803,4514.3,4514.2,0.6846]
[1757674534967,0.0664,4514.5,4514.4,0.1964]
[1757674535164,0.0664,4514.5,4514.4,0.6846]
[1757674537765,0.6921,4515.0,4514.9,0.6846]
[1757674537968,1.22338384,4515.0,4514.9,0.6846]
[1757674538164,0.6921,4515.0,4514.9,0.6846]
[1757674538369,1.34565359,4515.0,4514.1,0.2869]
[1757674538565,0.8147,4515.0,4514.1,0.2869]
[1757674539871,0.53089757,4514.9,4514.1,0.2869]